fUSD/lending_fUSD_20240718
["ID","MTS","AMOUNT","RATE_DAILY","PERIOD"]
[332515978,1721287928234,-500.0,0.00022191,2]
[332515979,1721287928244,-500.0,0.00022191,2]
[332515980,1721287928254,-559.08,0.00022191,2]
[332515981,1721287928264,-1777.51,0.00022191,2]
[332515982,1721287928274,-1444.47,0.00022191,2]
[332515983,1721287928284,-500.0,0.00022191,2]
[332515984,1721287928294,-500.0,0.00022191,2]
[332515985,1721287928304,-1147.47,0.00022191,2]
[332515986,1721287928314,-500.0,0.00022191,2]
[332515987,1721287928324,-500.0,0.00022191,2]
[332515988,1721287928334,-815.97,0.00022191,2]
[332515989,1721287928343,-500.0,0.00022191,2]
[332515990,1721287928353,-500.0,0.00022191,2]
[332515991,1721287928363,-500.0,0.00022191,2]
[332515992,1721287928372,-500.0,0.00022191,2]
[332515993,1721287928382,-1394.22,0.00022191,2]
[332515994,1721287928391,-1149.47,0.00022191,2]
[332515995,1721287928402,-500.0,0.00022191,2]
[332515996,1721287928412,-500.0,0.00022191,2]
[332515997,1721287928422,-500.0,0.00022191,2]
[332515998,1721287928432,-500.0,0.00022191,2]
[332515999,1721287928443,-588.95,0.00022191,2]
[332516000,1721287928453,-500.0,0.00022191,2]
[332516001,1721287928462,-500.0,0.00022191,2]
[332516002,1721287928472,-7884.99,0.00022191,2]
[332516003,1721287928481,-1142.52,0.00022191,2]
[332516004,1721287928491,-500.0,0.00022191,2]
[332516005,1721287928500,-2350.96,0.00022191,2]
[332516006,1721287928510,-500.0,0.00022191,2]
[332516007,1721287928520,-500.0,0.00022191,2]
[332516008,1721287928529,-500.0,0.00022191,2]
[332516009,1721287928539,-751.24,0.00022191,2]
[332516010,1721287928549,-817.71,0.00022191,2]
[332516011,1721287928559,-567.84,0.00022191,2]
[332516012,1721287928568,-500.0,0.00022191,2]
[332516013,1721287928577,-500.0,0.00022191,2]
[332516014,1721287928587,-518.01,0.00022191,2]
[332516015,1721287928597,-9262.82,0.00022191,2]
[332516016,1721287928607,-1047.43,0.00022191,2]
[332516017,1721287928623,-576.17,0.00022191,2]
[332516018,1721287928637,-500.0,0.00022191,2]
[332516019,1721287928646,-500.0,0.00022191,2]
[332516020,1721287928658,-500.0,0.00022191,2]
[332516021,1721287928668,-500.0,0.00022191,2]
[332516022,1721287928677,-500.0,0.00022191,2]
[332516023,1721287928688,-500.0,0.00022191,2]
[332516024,1721287928698,-943.1,0.00022191,2]
[332516025,1721287928708,-714.81,0.00022191,2]
[332516026,1721287928719,-500.0,0.00022191,2]
[332516027,1721287928729,-500.0,0.00022191,2]
[332516028,1721287928739,-500.0,0.00022191,2]
[332516029,1721287928748,-500.0,0.00022191,2]
[332516030,1721287928758,-559.22,0.00022191,2]
[332516031,1721287928768,-500.0,0.00022191,2]
[332516032,1721287928778,-1700.34,0.00022191,2]
[332516033,1721287928787,-533.42106531,0.00022191,2]
[332516034,1721287928797,-500.0,0.00022191,2]
[332516035,1721287928806,-671.4,0.00022191,2]
[332516036,1721287928815,-595.86,0.00022191,2]
[332516037,1721287928825,-500.0,0.00022191,2]
[332516038,1721287928835,-500.0,0.00022191,2]
[332516039,1721287928844,-500.0,0.00022191,2]
[332516040,1721287928853,-500.0,0.00022191,2]
[332516041,1721287928867,-500.0,0.00022191,2]
[332516042,1721287928877,-500.0,0.00022191,2]
[332516043,1721287928886,-500.0,0.00022191,2]
[332516044,1721287928896,-500.0,0.00022191,2]
[332516045,1721287928906,-500.0,0.00022191,2]
[332516046,1721287928917,-897.02,0.00022191,2]
[332516047,1721287928927,-500.0,0.00022191,2]
[332516048,1721287928936,-500.0,0.00022191,2]
[332516049,1721287928946,-327.02690562,0.00022191,2]
[332516050,1721287928956,-919.85,0.00022191,2]
[332516051,1721287928966,-763.5,0.00022191,2]
[332516052,1721287928975,-915.85,0.00022191,2]
[332516053,1721287928986,-812.96,0.00022191,2]
[332516054,1721287928995,-709.03,0.00022191,2]
[332516055,1721287929005,-500.0,0.00022191,2]
[332516056,1721287929015,-500.0,0.00022191,2]
[332516057,1721287929024,-1583.56,0.00022191,2]
[332516058,1721287929034,-500.0,0.00022191,2]
[332516059,1721287929044,-500.0,0.00022191,2]
[332516060,1721287929054,-634.02,0.00022191,2]
[332516061,1721287929063,-1450.66,0.00022191,2]
[332516062,1721287929073,-1299.19,0.00022191,2]
[332516063,1721287929083,-500.0,0.00022191,2]
[332516064,1721287929093,-500.0,0.00022191,2]
[332516065,1721287929103,-500.0,0.00022191,2]
[332516066,1721287929115,-500.0,0.00022191,2]
[332516067,1721287929125,-500.0,0.00022191,2]
[332516068,1721287929136,-500.0,0.00022191,2]
[332516069,1721287929146,-708.78,0.00022191,2]
[332516070,1721287929156,-500.0,0.00022191,2]
[332516071,1721287929167,-500.0,0.00022191,2]
[332516072,1721287929177,-948.76,0.00022191,2]
[332516073,1721287929187,-500.0,0.00022191,2]
[332516074,1721287929197,-500.0,0.00022191,2]
[332516075,1721287929206,-500.0,0.00022191,2]
[332516076,1721287929217,-1051.57,0.00022191,2]
[332516077,1721287929226,-2003.88,0.00022191,2]
[332516078,1721287929236,-796.81,0.00022191,2]
[332516079,1721287929246,-1013.83,0.00022191,2]
[332516080,1721287929256,-601.06,0.00022191,2]
[332516081,1721287929265,-515.65,0.00022191,2]
[332516082,1721287929276,-500.0,0.00022191,2]
[332516083,1721287929286,-500.0,0.00022191,2]
[332516084,1721287929295,-544.27,0.00022191,2]
[332516085,1721287929305,-503.35,0.00022191,2]
[332516086,1721287929315,-500.0,0.00022191,2]
[332516087,1721287929325,-1547.31,0.00022191,2]
[332516088,1721287929335,-500.0,0.00022191,2]
[332516089,1721287929344,-500.0,0.00022191,2]
[332516090,1721287929354,-500.0,0.00022191,2]
[332516091,1721287929364,-500.0,0.00022191,2]
[332516092,1721287929374,-612.66,0.00022191,2]
[332516093,1721287929383,-532.75828986,0.00022191,2]
[332516094,1721287929393,-677.55,0.00022191,2]
[332516095,1721287929402,-957.7,0.00022191,2]
[332516096,1721287929412,-999.04,0.00022191,2]
[332516097,1721287929422,-500.0,0.00022191,2]
[332516098,1721287929431,-304.23231413,0.00022191,2]
[332516099,1721287929441,-549.83,0.00022191,2]
[332516100,1721287929451,-500.0,0.00022191,2]
[332516101,1721287929460,-798.47,0.00022191,2]
[332516102,1721287929470,-237.26008218,0.00022191,2]
[332516103,1721287929479,-695.01,0.00022191,2]
[332516104,1721287929490,-500.0,0.00022191,2]
[332516105,1721287929500,-500.0,0.00022191,2]
[332516106,1721287929510,-539.79,0.00022191,2]
[332516107,1721287929519,-500.0,0.00022191,2]
[332516108,1721287929529,-500.0,0.00022191,2]
[332516109,1721287929640,-518.09,0.00022191,2]
[332516110,1721287929650,-500.0,0.00022191,2]
[332516111,1721287929659,-500.0,0.00022191,2]
[332516112,1721287929669,-500.0,0.00022191,2]
[332516113,1721287929679,-813.28,0.00022191,2]
[332516114,1721287929688,-500.0,0.00022191,2]
[332516115,1721287929698,-1656.81,0.00022191,2]
[332516116,1721287929707,-500.0,0.00022191,2]
[332516117,1721287929716,-649.17699517,0.00022191,2]
[332516118,1721287929727,-500.0,0.00022191,2]
[332516119,1721287929737,-945.22,0.00022191,2]
[332516120,1721287929747,-500.0,0.00022191,2]
[332516121,1721287929757,-500.0,0.00022191,2]
[332516122,1721287929766,-947.17,0.00022191,2]
[332516123,1721287929775,-500.0,0.00022191,2]
[332516124,1721287929786,-706.37,0.00022191,2]
[332516125,1721287929796,-500.0,0.00022191,2]
[332516126,1721287929805,-500.0,0.00022191,2]
[332516127,1721287929815,-500.0,0.00022191,2]
[332516128,1721287929824,-500.0,0.00022191,2]
[332516129,1721287929834,-500.0,0.00022191,2]
[332516130,1721287929843,-500.0,0.00022191,2]
[332516131,1721287929853,-500.0,0.00022191,2]
[332516132,1721287929865,-1135.75,0.00022191,2]
[332516133,1721287929875,-500.0,0.00022191,2]
[332516134,1721287929884,-500.0,0.00022191,2]
[332516135,1721287929893,-500.0,0.00022191,2]
[332516136,1721287929902,-673.53,0.00022191,2]
[332516137,1721287929911,-836.84,0.00022191,2]
[332516138,1721287929921,-3128.96,0.00022191,2]
[332516139,1721287929930,-500.0,0.00022191,2]
[332516140,1721287929940,-500.0,0.00022191,2]
[332516141,1721287929950,-500.0,0.00022191,2]
[332516142,1721287929959,-500.0,0.00022191,2]
[332516143,1721287929969,-500.0,0.00022191,2]
[332516144,1721287929979,-500.0,0.00022191,2]
[332516145,1721287929988,-842.49,0.00022191,2]
[332516146,1721287929997,-500.0,0.00022191,2]
[332516147,1721287930007,-557.31,0.00022191,2]
[332516148,1721287930016,-669.1,0.00022191,2]
[332516149,1721287930026,-500.0,0.00022191,2]
[332516150,1721287930036,-3223.32,0.00022191,2]
[332516151,1721287930046,-542.57,0.00022191,2]
[332516152,1721287930055,-500.0,0.00022191,2]
[332516153,1721287930065,-500.0,0.00022191,2]
[332516154,1721287930074,-500.0,0.00022191,2]
[332516155,1721287930085,-500.0,0.00022191,2]
[332516156,1721287930094,-884.02,0.00022191,2]
[332516157,1721287930104,-500.0,0.00022191,2]
[332516158,1721287930114,-500.0,0.00022191,2]
[332516159,1721287930124,-1416.46,0.00022191,2]
[332516160,1721287930133,-525.77,0.00022191,2]
[332516161,1721287930143,-500.0,0.00022191,2]
[332516162,1721287930152,-580.01174958,0.00022191,2]
[332516163,1721287930162,-500.0,0.00022191,2]
[332516164,1721287930171,-500.0,0.00022191,2]
[332516165,1721287930180,-808.77,0.00022191,2]
[332516166,1721287930190,-500.0,0.00022191,2]
[332516167,1721287930199,-888.04,0.00022191,2]
[332516168,1721287930209,-813.18,0.00022191,2]
[332516169,1721287930218,-500.0,0.00022191,2]
[332516170,1721287930227,-2204.96,0.00022191,2]
[332516171,1721287930237,-500.0,0.00022191,2]
[332516172,1721287930246,-500.0,0.00022191,2]
[332516173,1721287930256,-555.16230675,0.00022191,2]
[332516174,1721287930265,-617.34,0.00022191,2]
[332516175,1721287930274,-503.15,0.00022191,2]
[332516176,1721287930284,-500.0,0.00022191,2]
[332516177,1721287930293,-500.0,0.00022191,2]
[332516178,1721287930303,-500.0,0.00022191,2]
[332516179,1721287930312,-500.0,0.00022191,2]
[332516180,1721287930321,-550.97,0.00022191,2]
[332516181,1721287930331,-500.0,0.00022191,2]
[332516182,1721287930340,-698.16,0.00022191,2]
[332516183,1721287930350,-556.49,0.00022191,2]
[332516184,1721287930361,-500.0,0.00022191,2]
[332516185,1721287930371,-500.0,0.00022191,2]
[332516186,1721287930381,-773.79,0.00022191,2]
[332516187,1721287930390,-500.0,0.00022191,2]
[332516188,1721287930399,-1258.11,0.00022191,2]
[332516189,1721287930408,-1541.61,0.00022191,2]
[332516190,1721287930418,-500.0,0.00022191,2]
[332516191,1721287930427,-1497.76,0.00022191,2]
[332516192,1721287930437,-500.0,0.00022191,2]
[332516193,1721287930446,-500.0,0.00022191,2]
[332516194,1721287930455,-923.36,0.00022191,2]
[332516195,1721287930466,-500.0,0.00022191,2]
[332516196,1721287930475,-500.0,0.00022191,2]
[332516197,1721287930485,-500.0,0.00022191,2]
[332516198,1721287930494,-1777.63,0.00022191,2]
[332516199,1721287930503,-500.0,0.00022191,2]
[332516200,1721287930513,-500.0,0.00022191,2]
[332516201,1721287930523,-500.0,0.00022191,2]
[332516202,1721287930532,-1751.66,0.00022191,2]
[332516203,1721287930541,-500.0,0.00022191,2]
[332516204,1721287930551,-374.95861776,0.00022191,2]
[332516205,1721287930560,-500.0,0.00022191,2]
[332516206,1721287930570,-500.0,0.00022191,2]
[332516207,1721287930579,-500.0,0.00022191,2]
[332516208,1721287930588,-502.51316615,0.00022191,2]
[332516209,1721287930597,-600.34,0.00022191,2]
[332516210,1721287930607,-1440.65,0.00022191,2]
[332516211,1721287930621,-702.74,0.00022191,2]
[332516212,1721287930630,-748.62,0.00022191,2]
[332516213,1721287930640,-500.0,0.00022191,2]
[332516214,1721287930650,-500.0,0.00022191,2]
[332516215,1721287930660,-500.0,0.00022191,2]
[332516216,1721287930669,-500.0,0.00022191,2]
[332516217,1721287930679,-500.0,0.00022191,2]
[332516218,1721287930689,-500.0,0.00022191,2]
[332516219,1721287930701,-1459.37,0.00022191,2]
[332516220,1721287930711,-500.0,0.00022191,2]
[332516221,1721287930720,-834.65,0.00022191,2]
[332516222,1721287930730,-574.9,0.00022191,2]
[332516223,1721287930740,-1351.16,0.00022191,2]
[332516224,1721287930749,-500.0,0.00022191,2]
[332516225,1721287930759,-967.34,0.00022191,2]
[332516226,1721287930768,-945.46,0.00022191,2]
[332516227,1721287930777,-500.0,0.00022191,2]
[332516228,1721287930787,-6789.46,0.00022191,2]
[332516229,1721287930798,-500.0,0.00022191,2]
[332516230,1721287930807,-500.0,0.00022191,2]
[332516231,1721287930818,-1649.03,0.00022191,2]
[332516232,1721287930827,-500.0,0.00022191,2]
[332516233,1721287930837,-846.83,0.00022191,2]
[332516234,1721287930846,-3838.48,0.00022191,2]
[332516235,1721287930856,-727.83,0.00022191,2]
[332516236,1721287930867,-500.0,0.00022191,2]
[332516237,1721287930877,-500.0,0.00022191,2]
[332516238,1721287930886,-500.0,0.00022191,2]
[332516239,1721287930896,-500.0,0.00022191,2]
[332516240,1721287930905,-500.0,0.00022191,2]
[332516241,1721287930914,-592.88,0.00022191,2]
[332516242,1721287930923,-1099.8,0.00022191,2]
[332516243,1721287930932,-500.0,0.00022191,2]
[332516244,1721287930942,-500.0,0.00022191,2]
[332516245,1721287930952,-500.0,0.00022191,2]
[332516246,1721287930961,-500.0,0.00022191,2]
[332516247,1721287930971,-758.27,0.00022191,2]
[332516248,1721287930980,-1314.69,0.00022191,2]
[332516249,1721287930990,-500.0,0.00022191,2]
[332516250,1721287930999,-660.25,0.00022191,2]
[332516251,1721287931008,-1225.2,0.00022191,2]
[332516252,1721287931017,-500.0,0.00022191,2]
[332516253,1721287931027,-690.8,0.00022191,2]
[332516254,1721287931037,-500.0,0.00022191,2]
[332516255,1721287931047,-815.9,0.00022191,2]
[332516256,1721287931056,-500.0,0.00022191,2]
[332516257,1721287931065,-764.9,0.00022191,2]
[332516258,1721287931074,-500.0,0.00022191,2]
[332516259,1721287931083,-500.0,0.00022191,2]
[332516260,1721287931092,-500.0,0.00022191,2]
[332516261,1721287931101,-1445.6,0.00022191,2]
[332516262,1721287931111,-1211.24,0.00022191,2]
[332516263,1721287931120,-1000.0,0.00022191,2]
[332516264,1721287931129,-500.0,0.00022191,2]
[332516265,1721287931139,-500.0,0.00022191,2]
[332516266,1721287931148,-500.0,0.00022191,2]
[332516267,1721287931157,-500.0,0.00022191,2]
[332516268,1721287931166,-1017.79,0.00022191,2]
[332516269,1721287931175,-500.0,0.00022191,2]
[332516270,1721287931184,-500.0,0.00022191,2]
[332516271,1721287931194,-500.0,0.00022191,2]
[332516272,1721287931203,-500.0,0.00022191,2]
[332516273,1721287931213,-500.0,0.00022191,2]
[332516274,1721287931222,-500.0,0.00022191,2]
[332516275,1721287931231,-510.91459354,0.00022191,2]
[332516276,1721287931241,-819.77,0.00022191,2]
[332516277,1721287931250,-500.0,0.00022191,2]
[332516278,1721287931260,-500.0,0.00022191,2]
[332516279,1721287931270,-500.0,0.00022191,2]
[332516280,1721287931279,-500.0,0.00022191,2]
[332516281,1721287931288,-500.0,0.00022191,2]
[332516282,1721287931298,-843.65,0.00022191,2]
[332516283,1721287931307,-508.09,0.00022191,2]
[332516284,1721287931316,-1121.8,0.00022191,2]
[332516285,1721287931325,-500.0,0.00022191,2]
[332516286,1721287931334,-4510.49,0.00022191,2]
[332516287,1721287931344,-500.0,0.00022191,2]
[332516288,1721287931353,-500.0,0.00022191,2]
[332516289,1721287931363,-500.0,0.00022191,2]
[332516290,1721287931372,-500.0,0.00022191,2]
[332516291,1721287931381,-548.62,0.00022191,2]
[332516292,1721287931391,-615.98,0.00022191,2]
[332516293,1721287931400,-732.51,0.00022191,2]
[332516294,1721287931409,-500.0,0.00022191,2]
[332516295,1721287931418,-500.0,0.00022191,2]
[332516296,1721287931428,-500.0,0.00022191,2]
[332516297,1721287931439,-300.74804462,0.00022191,2]
[332516298,1721287931448,-500.0,0.00022191,2]
[332516299,1721287931458,-727.51,0.00022191,2]
[332516300,1721287931468,-500.0,0.00022191,2]
[332516301,1721287931477,-699.69,0.00022191,2]
[332516302,1721287931487,-780.84,0.00022191,2]
[332516303,1721287931496,-500.0,0.00022191,2]
[332516304,1721287931506,-985.19,0.00022191,2]
[332516305,1721287931515,-500.0,0.00022191,2]
[332516306,1721287931525,-2219.16,0.00022191,2]
[332516307,1721287931534,-2008.64,0.00022191,2]
[332516308,1721287931543,-661.47,0.00022191,2]
[332516309,1721287931553,-500.0,0.00022191,2]
[332516310,1721287931562,-500.0,0.00022191,2]
[332516311,1721287931572,-707.34,0.00022191,2]
[332516312,1721287931581,-776.84,0.00022191,2]
[332516313,1721287931591,-500.0,0.00022191,2]
[332516314,1721287931600,-6067.08,0.00022191,2]
[332516315,1721287931611,-500.0,0.00022191,2]
[332516316,1721287931622,-2197.33,0.00022191,2]
[332516317,1721287931632,-500.0,0.00022191,2]
[332516318,1721287931641,-500.0,0.00022191,2]
[332516319,1721287931651,-813.45,0.00022191,2]
[332516320,1721287931661,-500.0,0.00022191,2]
[332516321,1721287931670,-500.0,0.00022191,2]
[332516322,1721287931680,-500.0,0.00022191,2]
[332516323,1721287931691,-500.0,0.00022191,2]
[332516324,1721287931700,-500.0,0.00022191,2]
[332516325,1721287931710,-1222.6,0.00022191,2]
[332516326,1721287931719,-685.95,0.00022191,2]
[332516327,1721287931728,-501.03250609,0.00022191,2]
[332516328,1721287931738,-885.84,0.00022191,2]
[332516329,1721287931747,-500.0,0.00022191,2]
[332516330,1721287931757,-500.0,0.00022191,2]
[332516331,1721287931766,-500.0,0.00022191,2]
[332516332,1721287931775,-703.44,0.00022191,2]
[332516333,1721287931786,-589.04,0.00022191,2]
[332516334,1721287931795,-919.77,0.00022191,2]
[332516335,1721287931804,-500.0,0.00022191,2]
[332516336,1721287931813,-500.0,0.00022191,2]
[332516337,1721287931822,-2956.08,0.00022191,2]
[332516338,1721287931832,-500.0,0.00022191,2]
[332516339,1721287931841,-500.0,0.00022191,2]
[332516340,1721287931850,-699.95,0.00022191,2]
[332516341,1721287931861,-500.0,0.00022191,2]
[332516342,1721287931871,-758.73,0.00022191,2]
[332516343,1721287931881,-1023.99,0.00022191,2]
[332516344,1721287931890,-500.0,0.00022191,2]
[332516345,1721287931905,-799.42,0.00022191,2]
[332516346,1721287931914,-500.0,0.00022191,2]
[332516347,1721287931923,-500.0,0.00022191,2]
[332516348,1721287931932,-500.0,0.00022191,2]
[332516349,1721287931942,-500.0,0.00022191,2]
[332516350,1721287931952,-893.45,0.00022191,2]
[332516351,1721287931962,-500.0,0.00022191,2]
[332516352,1721287931972,-500.0,0.00022191,2]
[332516353,1721287931983,-1159.85,0.00022191,2]
[332516354,1721287931992,-500.0,0.00022191,2]
[332516355,1721287932002,-973.9,0.00022191,2]
[332516356,1721287932011,-500.0,0.00022191,2]
[332516357,1721287932021,-500.0,0.00022191,2]
[332516358,1721287932030,-500.0,0.00022191,2]
[332516359,1721287932040,-500.0,0.00022191,2]
[332516360,1721287932049,-500.0,0.00022191,2]
[332516361,1721287932059,-500.0,0.00022191,2]
[332516362,1721287932068,-500.0,0.00022191,2]
[332516363,1721287932078,-500.0,0.00022191,2]
[332516364,1721287932088,-500.0,0.00022191,2]
[332516365,1721287932097,-500.0,0.00022191,2]
[332516366,1721287932106,-622.67,0.00022191,2]
[332516367,1721287932117,-500.0,0.00022191,2]
[332516368,1721287932127,-1997.06,0.00022191,2]
[332516369,1721287932136,-500.0,0.00022191,2]
[332516370,1721287932146,-3632.25,0.00022191,2]
[332516371,1721287932155,-500.0,0.00022191,2]
[332516372,1721287932165,-695.06,0.00022191,2]
[332516373,1721287932174,-500.0,0.00022191,2]
[332516374,1721287932182,-249.635812,0.00022192,2]
[332516375,1721287932192,-157.03911617,0.00022199,2]
[332516376,1721287932200,-550.98546916,0.00022212,2]
[332516377,1721287932212,-371.32697632,0.00022223,2]
[332516378,1721287932222,-156.65385581,0.00022224,2]
[332516379,1721287932231,-154.66033317,0.00022236,2]
[332516380,1721287932241,-550.98546916,0.00022248,2]
[332516381,1721287932250,-414.54398897,0.00022254,2]
[332516382,1721287932260,-166.66666666,0.00022272,2]
[332516383,1721287932270,-445.12807451,0.00022274,2]
[332516384,1721287932279,-166.66666667,0.00022302,2]
[332516385,1721287932289,-500.0,0.00022309,2]
[332516386,1721287932299,-2062.94975587,0.00022314,2]
[332516387,1721287932308,-500.0,0.00022318,2]
[332516388,1721287932317,-979.61,0.0002232,2]
[332516389,1721287932326,-500.0,0.00022326,2]
[332516390,1721287932336,-166.66666666,0.00022331,2]
[332516391,1721287932346,-371.32697632,0.00022333,2]
[332516392,1721287932355,-500.0,0.00022335,2]
[332516393,1721287932365,-500.0,0.00022344,2]
[332516394,1721287932375,-267.41464615,0.00022345,2]
[332516395,1721287932384,-500.0,0.00022353,2]
[332516396,1721287932395,-186.77256121,0.00022355,2]
[332516397,1721287932404,-445.12807451,0.0002236,2]
[332516398,1721287932414,-500.0,0.00022362,2]
[332516399,1721287932424,-267.41464615,0.00022369,2]
[332516400,1721287932434,-805.34233156,0.00022369,2]
[332516401,1721287932443,-500.0,0.0002237,2]
[332516402,1721287932452,-161.84605211,0.00022371,2]
[332516403,1721287932462,-151.42828929,0.00022378,2]
[332516404,1721287932471,-500.0,0.00022379,2]
[332516405,1721287932481,-500.0,0.00022388,2]
[332516406,1721287932491,-500.0,0.00022397,2]
[332516407,1721287932501,-500.0,0.00022406,2]
[332516408,1721287932511,-550.98546916,0.00022414,2]
[332516409,1721287932520,-500.0,0.00022414,2]
[332516410,1721287932530,-166.66666666,0.00022417,2]
[332516411,1721287932540,-197.82356527,0.0002243,2]
[332516412,1721287932550,-414.54398897,0.00022431,2]
[332516413,1721287932559,-449.17565101,0.00022456,2]
[332516414,1721287932569,-278725.99,0.00022462,6]
[332516415,1721287932579,-9885.72,0.00022462,6]
[332516416,1721287932589,-66432.11,0.00022462,6]
[332516417,1721287932598,-55455.93,0.00022462,6]
[332516418,1721287932607,-34174.51,0.00022462,6]
[332516419,1721287932621,-11235.3,0.00022462,6]
[332516420,1721287932631,-128544.43,0.00022462,6]
[332516421,1721287932640,-25521.75,0.00022462,6]
[332516422,1721287932649,-15684.11,0.00022462,6]
[332516423,1721287932659,-5406.21,0.00022462,6]
[332516424,1721287932669,-244.24688538,0.00022465,2]
[332516425,1721287932679,-500.0,0.00022465,2]
[332516426,1721287932688,-500.0,0.00022465,2]
[332516427,1721287932699,-500.0,0.00022465,2]
[332516428,1721287932708,-1548.92,0.00022465,2]
[332516429,1721287932717,-500.0,0.00022465,2]
[332516430,1721287932727,-500.0,0.00022465,2]
[332516431,1721287932736,-500.0,0.00022465,2]
[332516432,1721287932746,-233.05648967,0.00022465,2]
[332516433,1721287932755,-500.0,0.00022465,2]
[332516434,1721287932765,-500.0,0.00022465,2]
[332516435,1721287932774,-500.0,0.00022465,2]
[332516436,1721287932783,-500.0,0.00022465,2]
[332516437,1721287932793,-500.0,0.00022465,2]
[332516438,1721287932802,-500.0,0.00022465,2]
[332516439,1721287932811,-500.0,0.00022465,2]
[332516440,1721287932820,-500.0,0.00022465,2]
[332516441,1721287932829,-500.0,0.00022465,2]
[332516442,1721287932838,-500.0,0.00022465,2]
[332516443,1721287932848,-500.0,0.00022465,2]
[332516444,1721287932857,-500.0,0.00022465,2]
[332516445,1721287932867,-500.0,0.00022465,2]
[332516446,1721287932876,-500.0,0.00022465,2]
[332516447,1721287932887,-500.0,0.00022465,2]
[332516448,1721287932896,-500.0,0.00022465,2]
[332516449,1721287932905,-500.0,0.00022465,2]
[332516450,1721287932916,-500.0,0.00022465,2]
[332516451,1721287932925,-500.0,0.00022465,2]
[332516452,1721287932936,-500.0,0.00022465,2]
[332516453,1721287932948,-500.0,0.00022465,2]
[332516454,1721287932957,-500.0,0.00022465,2]
[332516455,1721287932966,-500.0,0.00022465,2]
[332516456,1721287932977,-500.0,0.00022465,2]
[332516457,1721287932987,-500.0,0.00022465,2]
[332516458,1721287932996,-500.0,0.00022465,2]
[332516459,1721287933007,-500.0,0.00022465,2]
[332516460,1721287933017,-500.0,0.00022465,2]
[332516461,1721287933027,-500.0,0.00022465,2]
[332516462,1721287933037,-521.17469938,0.00022465,2]
[332516463,1721287933046,-500.0,0.00022465,2]
[332516464,1721287933055,-500.0,0.00022465,2]
[332516465,1721287933064,-500.0,0.00022465,2]
[332516466,1721287933074,-500.0,0.00022465,2]
[332516467,1721287933083,-500.0,0.00022465,2]
[332516468,1721287933093,-500.0,0.00022465,2]
[332516469,1721287933102,-500.0,0.00022465,2]
[332516470,1721287933111,-500.0,0.00022465,2]
[332516471,1721287933121,-500.0,0.00022465,2]
[332516472,1721287933131,-500.0,0.00022465,2]
[332516473,1721287933140,-500.0,0.00022465,2]
[332516474,1721287933149,-500.0,0.00022465,2]
[332516475,1721287933159,-500.0,0.00022465,2]
[332516476,1721287933169,-500.0,0.00022465,2]
[332516477,1721287933178,-500.0,0.00022465,2]